Cogmind - Beta 16 @@@ ROGUE MODE // 2025.10.25 @ 01:57:11 Player: The Gourd Result: Destroyed by as-76400 with Assembled Heavy Rifle Performance ------------- Evolutions (0) 0 Regions Visited (2) 400 Robots Destroyed (44) 220 Value Destroyed (720) 720 Prototype IDs (0) 0 Alien Tech Used (0) 0 Bonus (0) 0 TOTAL SCORE: 1340 Bonus ------- None Cogmind --------- Core Integrity 0/250 Matter 212/300 Energy 86/100 System Corruption 0% Temperature Cool (0) Movement Treading (480) Ox4 Location -10/Mines Parts ------- > --- POWER (1) -------- (None) > --- PROPULSION (2) --- Light Treads > --- UTILITY (2) ------ Huge Storage Unit Seismic Detector > --- WEAPON (2) ------- Heavy Battle Rifle > --- INVENTORY (25) --- Light Ion Engine Light Ion Engine Wheel Wheel Heat Sink Medium Storage Unit Large Storage Unit Cargo Storage Unit Structural Scanner Signal Interpreter Seismic Detector ECM Suite Hacking Suite Assault Rifle Assault Rifle Assault Rifle Light Assault Rifle Light Assault Rifle Light Assault Rifle Light Assault Rifle Light Assault Rifle Datajack Mining Laser Peak State ------------ > --- POWER ------------ Ion Engine > --- PROPULSION ------- Light Treads Wheel > --- UTILITY ---------- Huge Storage Unit Seismic Detector > --- WEAPON ----------- Assault Rifle Heavy Battle Rifle > --- INVENTORY -------- Light Ion Engine Light Ion Engine Light Treads Wheel Heat Sink Medium Storage Unit Large Storage Unit Cargo Storage Unit Structural Scanner Signal Interpreter Seismic Detector ECM Suite Hacking Suite Assault Rifle Assault Rifle Assault Rifle Light Assault Rifle Light Assault Rifle Light Assault Rifle Light Assault Rifle Light Assault Rifle Grenade Launcher Datajack Mining Laser [Rating: 12] Favorites ----------- Power Light Ion Engine Engine Light Ion Engine Propulsion Light Treads Treads Light Treads Wheel Wheel Utility Seismic Detector Device Seismic Detector Storage Huge Storage Unit Weapon Assault Rifle Ballistic Gun Assault Rifle Launcher Grenade Launcher Special Weapon Mining Laser Build | -11 -10 -10 ------- Run | Yrd Mat Min Slots Evolved . | . . . Power . | . . . Propulsion . | . . . Utility . | . . . Weapon . | . . . Parts Attached 18 | 7 8 3 Power 2 | 1 1 . Engine 2 | 1 1 . Core . | . . . Reactor . | . . . Propulsion 6 | 2 3 1 Treads 3 | 2 . 1 Leg . | . . . Wheel 3 | . 3 . Hover . | . . . Flight . | . . . Utility 3 | 2 1 . Device 1 | 1 . . Storage 2 | 1 1 . Processor . | . . . Hackware . | . . . Protection . | . . . Artifact . | . . . Weapon 7 | 2 3 2 Energy Gun . | . . . Energy Cannon . | . . . Ballistic Gun 4 | 2 . 2 Ballistic Cannon . | . . . Launcher 1 | . 1 . Special Weapon 2 | . 2 . Impact Weapon . | . . . Slashing Weapon . | . . . Piercing Weapon . | . . . Special Melee Weapon . | . . . Unidentified Prototypes . | . . . Parts Lost 5 | . . 5 Power 1 | . . 1 Propulsion 2 | . . 2 Utility . | . . . Weapon 2 | . . 2 Highest Loss Streak 4 | . . 4 To Critical Strikes . | . . . Average Backups 16 | 3 17 23 Power 1 | 1 2 2 Propulsion 1 | . 2 2 Utility 6 | . 6 9 Weapon 6 | 1 6 9 Tool/Special . | . . . Unused Backups 26 | 2 5 19 Power 2 | . . 2 Propulsion 1 | . . 1 Utility 12 | 1 2 9 Weapon 10 | 1 3 6 Tool/Special 1 | . . 1 Average Slot Usage (%) 98 | . 98 99 Engine 13 | . 13 13 Treads 15 | . 15 15 Wheel 12 | . 12 12 Device 14 | . 14 14 Storage 14 | . 14 14 Ballistic Gun 22 | . 22 24 Special Weapon 3 | . 4 . Peak Build Rating 12 | 7 9 12 Average Rating 8 | 6 8 10 On Entrance 5 | . 7 9 Avg Prop Armor Cover (%) 11 | . 11 11 Naked Turns . | . . . Heaviest Build 93 | 13 91 93 Greatest Support 40 | 40 40 10 Greatest Overweight (x) 28 | . 28 9 Average Overweight (x) 6 | . 7 8 Largest Inventory Capacity 25 | 8 25 25 Average Capacity 21 | 7 23 25 Most Carried 25 | 7 25 25 Average Carried 17 | 3 18 24 Final Capacity 25 | 8 25 25 Final Carried 25 | 5 25 24 Class Distribution -------------------- 100% | Mutant Dominant Class ---------------- Mutant | -10/Materials Mutant | -10/Mines Resources | -11 -10 -10 ----------- Run | Yrd Mat Min Matter Collected 1202 | 426 672 104 Remotely . | . . . Salvage Created 1155 | 205 849 101 Parts 99 | 26 69 4 Haulers Intercepted 2 | . 2 . Recyclers Shooed 4 | 1 3 . Parts Field Recycled . | . . . Retrieved Matter . | . . . Parts Self-Destructed . | . . . Prevented . | . . . Parts Restored . | . . . Kills | -11 -10 -10 ------- Run | Yrd Mat Min Combat Hostiles Destroyed 26 | . 17 9 Guns 12 | . 10 2 AOE 14 | . 7 7 Classes Destroyed 11 | 3 7 1 Worker 6 | 2 4 . Builder 2 | . 2 . Tunneler 7 | 6 1 . Hauler 2 | . 2 . Recycler 3 | 1 2 . Mechanic 1 | . 1 . Operator 1 | . 1 . Watcher 2 | . 2 . Swarmer 6 | . 6 . Grunt 14 | . 11 3 Assembled 6 | . . 6 Best Kill Streak 6 | 3 4 6 Combat Bots Only 6 | . 3 6 Max Kills in Single Turn 5 | 1 2 5 Gunslinging . | . . . Exploded 5 | . 2 5 Melee . | . . . Uniques/NPCs Destroyed . | . . . Combat | -11 -10 -10 -------- Run | Yrd Mat Min Hostile Shots Fired 88 | . 46 42 Missed 27 | . 12 15 Hits 61 | . 34 27 Projectile 61 | . 34 27 AOE 10 | . . 10 Critical Strikes 3 | . 2 1 Damage Taken 1077 | . 382 695 Core 259 | . 83 176 Absorbed by Shields . | . . . Core Remaining (%) 100 | 100 . . Volleys Fired 121 | 26 76 19 Largest 2 | 2 2 2 Hottest 120 | 40 120 53 Shots Fired 205 | 52 129 24 Gun 187 | 52 116 19 Cannon . | . . . Launcher 12 | . 7 5 Special 6 | . 6 . Kinetic 187 | 52 116 19 Thermal 6 | . 6 . Explosive 12 | . 7 5 Electromagnetic . | . . . Robot Hit Streak 15 | 6 15 12 Robot Miss Streak 4 | 4 3 1 Penetration Max . | . . . Secondary Targets 1 | . 1 . Max Gunslinging Chain 1 | . 1 . Shots Hit Robots 125 | 30 79 16 Core Hits 80 | 10 44 26 Critical Kills . | . . . Critical Parts Destroyed . | . . . Critical Strikes . | . . . Melee Attacks . | . . . Impact . | . . . Slashing . | . . . Piercing . | . . . Sneak Attacks . | . . . Combat Hostiles . | . . . Follow-up Attacks . | . . . Damage Inflicted 2641 | 424 1433 784 Guns 1548 | 424 922 202 Cannons . | . . . Explosions 1063 | . 481 582 Melee . | . . . Ramming 6 | . 6 . Kinetic 1548 | 424 922 202 Thermal 24 | . 24 . Explosive 1063 | . 481 582 Electromagnetic . | . . . Impact . | . . . Slashing . | . . . Piercing . | . . . Highest Corruption . | . . . Average Corruption . | . . . Corruption Purged . | . . . Corruption Blocked . | . . . Overload Shots . | . . . Overflow Damage 27 | . 10 17 Projectiles . | . . . Explosions 27 | . 10 17 Melee . | . . . Knockbacks . | . . . Impact . | . . . Kinetic . | . . . Secondary . | . . . Self-Inflicted Damage 2 | . 2 . Shots . | . . . Rammed 2 | . 2 . Targets Rammed 2 | . 2 . Kicked . | . . . Crushed . | . . . Highest Temperature 40 | . 40 11 Average Temperature 12 | . 13 4 Received Heat Transfer 284 | . 204 80 Siege Activations . | . . . Martial Activations . | . . . Shielding Activations . | . . . Robots Disrupted . | . . . Combat Hostiles . | . . . Robots Corrupted . | . . . Combat Hostiles . | . . . Parts Fried . | . . . Impact Corruptions . | . . . Robots Melted . | . . . Combat Hostiles . | . . . Parts Melted . | . . . Heat Transferred 50 | . 50 . Parts Sabotaged . | . . . Parts Stolen . | . . . Parts Stripped . | . . . Power Chain Reactions . | . . . Alert | -11 -10 -10 ------- Run | Yrd Mat Min Maximum Alert Level 1 | . 1 . Low Security (%) 87 | 100 83 100 Level 1 12 | . 16 . Level 2 . | . . . Level 3 . | . . . Level 4 . | . . . Level 5 . | . . . High Security . | . . . Max Security . | . . . Peak Influence 240 | 15 240 100 Initial 90 | . . 90 Average 67 | 1 78 57 Influence Increases 770 | 45 628 97 Destroy 0b10 Robot/C 400 | . 340 60 Destroy 0b10 Robot/NC 120 | 45 75 . Destroy Leader 88 | . 78 10 Successful Hack 19 | . 19 . Select Force Hacks 60 | . 60 . Disable Machine 15 | . 15 . Destroy Structure 68 | . 41 27 Influence Decreases 763 | 45 395 323 Entered New Map 143 | . . 143 Time Decay 570 | 45 395 130 Lost Part 50 | . . 50 Squads Dispatched 6 | . 6 . Investigation 4 | . 4 . Extermination . | . . . Reinforcement 2 | . 2 . Assault . | . . . Garrison . | . . . Intercept . | . . . Searches Triggered . | . . . Construction Impeded . | . . . Haulers Reinforced . | . . . Active Scanning Responses . | . . . Cargo Convoy Interrupts . | . . . Stealth | -11 -10 -10 --------- Run | Yrd Mat Min Distress Signals 1 | . 1 . Communications Jammed . | . . . Distress Signals . | . . . Times Spotted 58 | . 29 29 Peak Tracking Total 18 | . 3 18 Tactical Retreats . | . . . Traps | -11 -10 -10 ------- Run | Yrd Mat Min Traps Triggered 5 | . 5 . Indirectly . | . . . Trap Hack Attempts . | . . . Triggered . | . . . Disarmed . | . . . Reprogrammed . | . . . Reused . | . . . Traps Extracted . | . . . Installed . | . . . Triggered . | . . . Machines | -11 -10 -10 ---------- Run | Yrd Mat Min Machines Disabled 3 | . 3 . Max in Single Turn 1 | . 1 . Machines Repaired . | . . . Machines Dismantled . | . . . Machines Sabotaged . | . . . Overloaded Fab Kills . | . . . Hacking | -11 -10 -10 --------- Run | Yrd Mat Min Machines Accessed 7 | . 7 . Terminals 5 | . 5 . Fabricators . | . . . Repair Stations . | . . . Recycling Units 2 | . 2 . Scanalyzers . | . . . Garrison Access . | . . . Total Hacks 18 | . 18 . Successful 12 | . 12 . Failed 6 | . 6 . Catastrophic 1 | . 1 . Database Lockouts . | . . . Manual 13 | . 13 . Terminals 16 | . 16 . Fabricators . | . . . Repair Stations . | . . . Recycling Units 2 | . 2 . Scanalyzers . | . . . Garrison Access . | . . . Terminal Hacks 4 | . 4 . Robot Analysis 1 | . 1 . Emergency Access Points 1 | . 1 . Recycling Unit Index 1 | . 1 . Hauler Manifests 1 | . 1 . Fabricator Hacks . | . . . Repair Station Hacks . | . . . Recycling Unit Hacks . | . . . Scanalyzer . | . . . Garrison Access Hacks . | . . . Unauthorized Hacks 8 | . 8 . Terminals 6 | . 6 . Botnet 1 | . 1 . Skim 5 | . 5 . Fabricators . | . . . Repair Stations . | . . . Recycling Units 2 | . 2 . Tunnel 2 | . 2 . Scanalyzers . | . . . Garrison Access . | . . . Data Cores Recovered . | . . . Used . | . . . Hacking Detections 5 | . 5 . Full Trace Events . | . . . Feedback Events . | . . . Feedback Blocked . | . . . Robot Schematics Acquired . | . . . Robots Built . | . . . Authchips . | . . . Time . | . . . Total Robot Build Rating . | . . . Part Schematics Acquired . | . . . Parts Built . | . . . Authchips . | . . . Time . | . . . Total Part Build Rating . | . . . Part Studies Acquired . | . . . Parts Repaired . | . . . Time . | . . . Parts Recycled . | . . . Recycled Matter . | . . . Retrieved Matter . | . . . Retrieved Components . | . . . Parts Scanalyzed . | . . . Part Schematics Acquired . | . . . Parts Damaged . | . . . Bothacking | -11 -10 -10 ------------ Run | Yrd Mat Min Used RIF Installer . | . . . Robots Hacked . | . . . Non-combat . | . . . Combat . | . . . Robot Hacks Applied . | . . . Relay Couplers Released . | . . . Fabnet Peak Effective % . | . . . Robots Rewired . | . . . Allies Hacked . | . . . Hacks Repelled . | . . . Allies | -11 -10 -10 -------- Run | Yrd Mat Min Total Allies . | . . . Largest Group . | . . . Highest-Rated Group . | . . . Highest-Rated Ally . | . . . Total Orders . | . . . Ally Attacks . | . . . Total Damage . | . . . Kills . | . . . Allies Corrupted . | . . . Allies Melted . | . . . Intel | -11 -10 -10 ------- Run | Yrd Mat Min Active Infowar (turns) 3014 | 228 2509 277 Seismic 3014 | 228 2509 277 Robot Analysis Total 1 | . 1 . Derelict Logs Recovered 2 | . . 2 Drone Launches . | . . . Drone Recoveries . | . . . Exploration | -11 -10 -10 ------------- Run | Yrd Mat Min Turns Passed 3167 | 381 2509 277 Spaces Moved 1297 | 174 1019 104 Core 4 | 2 2 . Treads 299 | 172 127 . Legs . | . . . Wheels 994 | . 890 104 Hover . | . . . Flight . | . . . Fastest Speed 50 | 50 95 200 Average Speed 193 | 158 198 209 Slowest Speed 1450 | 160 1450 215 Overloaded Moves . | . . . Propulsion Burnouts . | . . . Robots Hopped . | . . . Potential Cave-ins . | . . . Cave-ins Triggered . | . . . Exploration Rate (%) 44 | 8 86 39 Regions Visited 2 Branch Regions 1 Pre-discovered Areas 4 | . 3 1 Known Exits Taken . | . . . Unknown Exits Taken 2 | 1 1 . Scrap Searched . | . . . Spaces Dug 2 | . 2 . Terrain Destroyed 80 | . 39 41 Melee . | . . . Projectile 7 | . 4 3 AOE 73 | . 35 38 Terrain Rammed . | . . . Walls Destroyed . | . . . Machines Disabled . | . . . Actions | -11 -10 -10 --------- Run | Yrd Mat Min Total 1718 | 224 1359 135 Wait 209 | 9 200 . Move 1295 | 173 1018 104 Hop . | . . . Pick Up 33 | 7 25 1 Fast Attach 16 | 7 9 . Attach 2 | . . 2 Detach 1 | . 1 . Swap 26 | . 17 9 Drop 13 | 2 11 . Fire 121 | 26 76 19 Melee . | . . . Ram 2 | . 2 . Kick . | . . . Crush . | . . . Escape Stasis . | . . . Rewire . | . . . Trap . | . . . Miscellaneous . | . . . Route ------- -11/Scrapyard -10/Materials (discovered 5 exits: *Mat x3 / [*Min] / Sub) -10/Mines (discovered 3 exits: *Mat x2 / *Sub) History --------- Turn | Location | Event 28 | -11/Scrapyard | Discovered new exit (range 15) 382 | -11/Scrapyard | Entered Materials 383 | -10/Materials | Build established: Mutant 458 | -10/Materials | Discovered new exit (range 10) 534 | -10/Materials | Discovered new exit (range 14) 1668 | -10/Materials | Discovered new exit (range 16) 2125 | -10/Materials | Identified exit to Materials 2189 | -10/Materials | Identified exit to Subcaves 2189 | -10/Materials | Learned location of 2 exits from Materials 2318 | -10/Materials | Learned location of 1 exit from Recycling 2422 | -10/Materials | Learned Storage machine intel 2891 | -10/Materials | Entered Mines 2985 | -10/Mines | A weapon hastily lodged in a ceiling crevice suddenly fell to the ground 3052 | -10/Mines | Learned location of Storage (-8) 3134 | -10/Mines | Assembled infested the area 3139 | -10/Mines | Assisted by a Guerilla fighting off Assembled 3155 | -10/Mines | Core integrity fell below 50% 3157 | -10/Mines | Discovered exit to Subcaves (range 9) 3165 | -10/Mines | Core integrity fell below 20% 3168 | -10/Mines | Destroyed by as-76400 with Assembled Heavy Rifle Last Messages --------------- 03156_ as-09366 destroyed. 03156_ as-88960 destroyed. 03156_ T-07 Excavator is excavating. 03157_ The unstable cave ceiling collapses. 03157_ EXIT=FOUND: SUBCAVES 03158_ Assault Rifle destroyed. [Achievement: There's More Where That Came From] 03159_ Ion Engine destroyed. 03160_ T-07 Excavator is excavating. 03161_ D-53 Grenadier destroyed. 03163_ The unstable cave ceiling collapses. 03164_ Grenade Launcher destroyed. 03164_ as-43332 destroyed. 03164_ T-07 Excavator is excavating. 03166_ U-05 Engineer lays Concrete. 03167_ The unstable cave ceiling collapses. 03167_ U-05 Engineer lays Concrete. 03168_ Lgt. Treads destroyed. 03168_ U-05 Engineer destroyed. 03168_ U-05 Engineer lays Concrete. Map ----- +----------------------------------------------------+ | ???????# ##???????????## ##????????????? | | ???????# ##????????????# #?????????????? | | ???????## * #####?????????# #?????????????? | | ????????#### #?????????# #????????????## | | ???????????#### #?????????## ##????????????? | | ?????????????### #??????????# #?????????????? | | ?????????????# # #??????????# #??????????????# | | ????????????## # ##?????????# #??????????????# | | ????????????# # #?????????# ####???????????# | | ????????????# # ##??????#### #???????????# | | ????????????##### ##????? #### #???????????# | | ??????????????## ##????? #?# ####???????## | | ??????????????# ##???? ## #??????##! | | ??????????????# ##### ##### #???####%= | | ??????????????## % #; #???# ##### =! | | ???????????????## #???# ## | | ????????????????## #???####### ### | | ?????????????????; #?????????# #?# | | ???? ?????# d #?????????# | | ??? ???# ##?????????# ### | | ??? ## =u #??????????# ?? | | ??? =%! ##?????????? ? | | ??? *! ####??????????? ? | | ??? ####### ##???????????? | | ???? ????????# ###?????????? | | ???? ????????????# @ #????????? | | ???????????????????# #???????? ? | | ???????????????????## #???????? | | ????????????????????# ##???????? | | ???????????????????# a #?????????? ?? | | ???????????????????# t ??????????????? | | ???????????????????# # a%# ##?????????????? | | ???????????????????> ##### #??????????????? | | ??????????????????###???? a #??????????????? | | ????????????????????????? a ##??????????????? | | ????????????????????????? ## #???????????????? | | ????????????????????????? #? ;???????????????? | | ????????????????????????? < ??##??????????????? | | ????????????????????????? ##??????????????????? | | ?????????????????????????####???????????????????? | | ????????????????????????????????????????????????? | | ????????????????????????????????????????????????? | | ????????????????????????????????????????????????? | | | | | | | | | | | | | | | +----------------------------------------------------+ Best States ------------- Heat Dissipation 25 Energy Generation 10 Energy Capacity 250 Matter Stores 300 Matter Capacity 300 Sight Range 16 Terrain Scan Density 10 Evasion (%) 41 Recoil Reduction 2 Item Schematics ----------------- None Robot Schematics ------------------ None Fabricated ------------ Nothing Repaired ---------- Nothing Studied --------- None Alien Tech Used ----------------- None Achievements -------------- For Emergencies Only I Have A Map? There's More Where That Came From Challenges ------------ None Game ------ Seed SystemMinesnifferShredder Manual? 0 Play Time 00:22:33 Cumulative 138.0 hours Start 2025.10.25 @ 01:35:11 End 2025.10.25 @ 01:57:11 Sessions 1 Manual Loads 0 Difficulty Rogue Special Mode None Game No. 98 Rogue 98 Adventurer 0 Explorer 0 Win Type - Total 2 Types 2/0/0/0/0/0/0/0/0/0 Lore% 43 Gallery% 48 Achievement% 29 Wizard Run 0 Options --------- Layout 1 ASCII 0 Keyboard 1 Movement Vi Keybinds 1 Fullscreen 1 Font 32/SmallcapsGlow Map View 50x35 Zoom Use 0% Tactical HUD 1 Map Filters NONE Filters NONE Steam 1 RUN: 131bbde4-89a2-4446-abed-cec81e84bd95